[Event "Titled Tuesday Blitz August 15 Late 2023"]
[White "Jahnz, Fabian"]
[Black "Reprintsev, Alexander"]
[WhiteFideId "4653300"]
[BlackFideId "14100541"]
[WhiteElo "2343"]
[BlackElo "2490"]
[Result "0-1"]
[Round "6"]
[TimeControl "180+1"]
[Date "2023.08.15"]
[WhiteClock "0:00:11"]
[BlackClock "0:00:05"]
[Board "122"]

1. e4 {[%clk 0:02:49]}  d5 {[%clk 0:02:58]} 2. exd5 {[%clk 0:02:48]}  Qxd5 {[%clk 0:02:55]} 3. Nc3 {[%clk 0:02:49]}  Qd6 {[%clk 0:02:55]} 4. Nf3 {[%clk 0:02:49]}  c6 {[%clk 0:02:53]} 5. Bc4 {[%clk 0:02:49]}  Be6 {[%clk 0:02:52]} 6. Bxe6 {[%clk 0:02:48]}  Qxe6+ {[%clk 0:02:52]} 7. Qe2 {[%clk 0:02:48]}  Qxe2+ {[%clk 0:02:51]} 8. Kxe2 {[%clk 0:02:49]}  Nd7 {[%clk 0:02:48]} 9. d4 {[%clk 0:02:49]}  g6 {[%clk 0:02:40]} 10. Bf4 {[%clk 0:02:49]}  Bh6 {[%clk 0:02:37]} 11. Bxh6 {[%clk 0:02:48]}  Nxh6 {[%clk 0:02:37]} 12. h3 {[%clk 0:02:48]}  Nf5 {[%clk 0:02:37]} 13. g4 {[%clk 0:02:46]}  Nd6 {[%clk 0:02:36]} 14. Rad1 {[%clk 0:02:39]}  h5 {[%clk 0:02:29]} 15. b3 {[%clk 0:02:30]}  O-O-O {[%clk 0:02:28]} 16. a4 {[%clk 0:02:25]}  f6 {[%clk 0:02:06]} 17. d5 {[%clk 0:02:12]}  cxd5 {[%clk 0:01:53]} 18. Nxd5 {[%clk 0:02:10]}  Rde8 {[%clk 0:01:52]} 19. Kf1 {[%clk 0:01:56]}  hxg4 {[%clk 0:01:51]} 20. Nd4 {[%clk 0:01:51]}  e5 {[%clk 0:01:42]} 21. Ne2 {[%clk 0:01:43]}  Nf5 {[%clk 0:01:41]} 22. Kg2 {[%clk 0:01:36]}  gxh3+ {[%clk 0:01:26]} 23. Rxh3 {[%clk 0:01:37]}  Rxh3 {[%clk 0:01:25]} 24. Kxh3 {[%clk 0:01:38]}  Rh8+ {[%clk 0:01:23]} 25. Kg2 {[%clk 0:01:38]}  Nh4+ {[%clk 0:01:12]} 26. Kg3 {[%clk 0:01:37]}  f5 {[%clk 0:01:11]} 27. Rh1 {[%clk 0:01:25]}  g5 {[%clk 0:01:11]} 28. Ne7+ {[%clk 0:01:23]}  Kc7 {[%clk 0:01:06]} 29. Nd5+ {[%clk 0:01:01]}  Kd6 {[%clk 0:01:06]} 30. c4 {[%clk 0:01:01]}  Nc5 {[%clk 0:01:01]} 31. Nec3 {[%clk 0:00:41]}  Nxb3 {[%clk 0:00:54]} 32. Rb1 {[%clk 0:00:39]}  Nc5 {[%clk 0:00:50]} 33. Nb5+ {[%clk 0:00:40]}  Ke6 {[%clk 0:00:48]} 34. Nxa7 {[%clk 0:00:39]}  Ne4+ {[%clk 0:00:42]} 35. Kh2 {[%clk 0:00:35]}  Nf3+ {[%clk 0:00:20]} 36. Kg2 {[%clk 0:00:33]}  g4 {[%clk 0:00:18]} 37. Rb6+ {[%clk 0:00:33]}  Kf7 {[%clk 0:00:15]} 38. Rxb7+ {[%clk 0:00:33]}  Kg6 {[%clk 0:00:15]} 39. Kf1 {[%clk 0:00:17]}  Rh1+ {[%clk 0:00:14]} 40. Ke2 {[%clk 0:00:17]}  Re1+ {[%clk 0:00:13]} 41. Kd3 {[%clk 0:00:18]}  Rd1+ {[%clk 0:00:12]} 42. Kc2 {[%clk 0:00:18]}  Rd2+ {[%clk 0:00:12]} 43. Kb3 {[%clk 0:00:19]}  Rxf2 {[%clk 0:00:12]} 44. a5 {[%clk 0:00:18]}  Nd4+ {[%clk 0:00:12]} 45. Ka4 {[%clk 0:00:16]}  Nc5+ {[%clk 0:00:12]} 46. Ka3 {[%clk 0:00:15]}  Nxb7 {[%clk 0:00:12]} 47. a6 {[%clk 0:00:16]}  Nc5 {[%clk 0:00:12]} 48. Nc6 {[%clk 0:00:17]}  Nxa6 {[%clk 0:00:12]} 49. Nxe5+ {[%clk 0:00:17]}  Kg5 {[%clk 0:00:11]} 50. Nf7+ {[%clk 0:00:17]}  Kh4 {[%clk 0:00:11]} 51. Nd6 {[%clk 0:00:17]}  g3 {[%clk 0:00:09]} 52. c5 {[%clk 0:00:17]}  Nxc5 {[%clk 0:00:08]} 53. Kb4 {[%clk 0:00:17]}  Nce6 {[%clk 0:00:08]} 54. Nf6 {[%clk 0:00:16]}  g2 {[%clk 0:00:08]} 55. Nxf5+ {[%clk 0:00:14]}  Rxf5 {[%clk 0:00:06]} 56. Ne4 {[%clk 0:00:14]}  Rf4 {[%clk 0:00:05]} 57. Nd6 {[%clk 0:00:12]}  g1=Q {[%clk 0:00:05]} 58. Nf5+ {[%clk 0:00:12]}  Nxf5+ {[%clk 0:00:05]} 59. Kb5 {[%clk 0:00:11]}  Qb1+ {[%clk 0:00:05]} 0-1


[Site "https://www.chess.com"]

[Event "Titled Tuesday Blitz August 15 Late 2023"]
[White "Romero Ruscalleda, Josep"]
[Black "Cheer_Down"]
[WhiteFideId "2231859"]
[WhiteElo "2431"]
[BlackElo "2314"]
[Result "0-1"]
[Round "6"]
[TimeControl "180+1"]
[Date "2023.08.15"]
[WhiteClock "0:00:00"]
[BlackClock "0:00:30"]
[Board "124"]

1. e4 {[%clk 0:03:00]}  c5 {[%clk 0:02:58]} 2. c3 {[%clk 0:03:00]}  Nf6 {[%clk 0:02:57]} 3. e5 {[%clk 0:03:00]}  Nd5 {[%clk 0:02:57]} 4. Nf3 {[%clk 0:03:01]}  Nc6 {[%clk 0:02:55]} 5. Bc4 {[%clk 0:03:00]}  Nb6 {[%clk 0:02:53]} 6. Bb3 {[%clk 0:03:00]}  d5 {[%clk 0:02:53]} 7. exd6 {[%clk 0:03:00]}  Qxd6 {[%clk 0:02:53]} 8. O-O {[%clk 0:03:00]}  Be6 {[%clk 0:02:51]} 9. Re1 {[%clk 0:02:58]}  Bxb3 {[%clk 0:02:50]} 10. axb3 {[%clk 0:02:58]}  g6 {[%clk 0:02:44]} 11. Na3 {[%clk 0:02:56]}  Bg7 {[%clk 0:02:38]} 12. d3 {[%clk 0:02:43]}  O-O {[%clk 0:02:35]} 13. Be3 {[%clk 0:02:40]}  Nd5 {[%clk 0:02:31]} 14. Bg5 {[%clk 0:02:13]}  f6 {[%clk 0:02:13]} 15. Bh4 {[%clk 0:02:05]}  e5 {[%clk 0:02:10]} 16. d4 {[%clk 0:01:49]}  exd4 {[%clk 0:01:58]} 17. Bg3 {[%clk 0:01:44]}  Qd7 {[%clk 0:01:51]} 18. cxd4 {[%clk 0:01:42]}  cxd4 {[%clk 0:01:51]} 19. Nxd4 {[%clk 0:01:41]}  Nxd4 {[%clk 0:01:35]} 20. Qxd4 {[%clk 0:01:41]}  f5 {[%clk 0:01:33]} 21. Be5 {[%clk 0:01:26]}  Bxe5 {[%clk 0:01:21]} 22. Rxe5 {[%clk 0:01:26]}  Nf6 {[%clk 0:01:22]} 23. Qc4+ {[%clk 0:00:54]}  Qf7 {[%clk 0:01:21]} 24. Re7 {[%clk 0:00:46]}  Qxc4 {[%clk 0:01:21]} 25. bxc4 {[%clk 0:00:46]}  Rf7 {[%clk 0:01:19]} 26. Rae1 {[%clk 0:00:44]}  Ne4 {[%clk 0:01:14]} 27. Rxf7 {[%clk 0:00:41]}  Kxf7 {[%clk 0:01:13]} 28. f3 {[%clk 0:00:35]}  Nc5 {[%clk 0:01:13]} 29. Nb5 {[%clk 0:00:29]}  a6 {[%clk 0:01:02]} 30. Nd6+ {[%clk 0:00:27]}  Kf6 {[%clk 0:00:59]} 31. b4 {[%clk 0:00:19]}  Nd3 {[%clk 0:00:58]} 32. Rd1 {[%clk 0:00:19]}  Nxb4 {[%clk 0:00:57]} 33. Nxb7 {[%clk 0:00:19]}  a5 {[%clk 0:00:55]} 34. Rb1 {[%clk 0:00:10]}  Nd3 {[%clk 0:00:49]} 35. c5 {[%clk 0:00:09]}  a4 {[%clk 0:00:48]} 36. c6 {[%clk 0:00:09]}  a3 {[%clk 0:00:48]} 37. Ra1 {[%clk 0:00:08]}  Ke6 {[%clk 0:00:34]} 38. Kf1 {[%clk 0:00:00]}  a2 {[%clk 0:00:30]} 0-1


[Site "https://www.chess.com"]

[Event "Titled Tuesday Blitz August 15 Late 2023"]
[White "Pesotskiy, Mikhail"]
[Black "Martinez, Shawn"]
[WhiteFideId "34164453"]
[BlackFideId "2039770"]
[WhiteElo "2423"]
[BlackElo "2314"]
[Result "1-0"]
[Round "6"]
[TimeControl "180+1"]
[Date "2023.08.15"]
[WhiteClock "0:00:12"]
[BlackClock "0:00:03"]
[Board "125"]

1. d4 {[%clk 0:02:58]}  g6 {[%clk 0:02:58]} 2. c4 {[%clk 0:02:58]}  Bg7 {[%clk 0:02:58]} 3. e4 {[%clk 0:02:59]}  b6 {[%clk 0:02:59]} 4. Nc3 {[%clk 0:02:57]}  Bb7 {[%clk 0:03:00]} 5. Be3 {[%clk 0:02:58]}  h6 {[%clk 0:02:59]} 6. Qd2 {[%clk 0:02:58]}  e6 {[%clk 0:02:58]} 7. Bd3 {[%clk 0:02:58]}  d6 {[%clk 0:02:59]} 8. f4 {[%clk 0:02:57]}  Nd7 {[%clk 0:02:59]} 9. Nf3 {[%clk 0:02:58]}  Ne7 {[%clk 0:03:00]} 10. O-O {[%clk 0:02:56]}  c5 {[%clk 0:02:54]} 11. d5 {[%clk 0:02:55]}  a6 {[%clk 0:02:48]} 12. Rae1 {[%clk 0:02:50]}  O-O {[%clk 0:02:35]} 13. e5 {[%clk 0:02:40]}  dxe5 {[%clk 0:02:27]} 14. dxe6 {[%clk 0:02:37]}  fxe6 {[%clk 0:02:10]} 15. Nxe5 {[%clk 0:02:36]}  Nxe5 {[%clk 0:02:02]} 16. fxe5 {[%clk 0:02:37]}  g5 {[%clk 0:02:02]} 17. Rxf8+ {[%clk 0:02:22]}  Qxf8 {[%clk 0:01:57]} 18. Rf1 {[%clk 0:01:51]}  Qe8 {[%clk 0:01:43]} 19. Ne4 {[%clk 0:01:50]}  Bxe4 {[%clk 0:01:35]} 20. Bxe4 {[%clk 0:01:51]}  Rd8 {[%clk 0:01:35]} 21. Qe2 {[%clk 0:01:43]}  Bxe5 {[%clk 0:01:28]} 22. Bb1 {[%clk 0:01:09]}  Nf5 {[%clk 0:01:12]} 23. Bxc5 {[%clk 0:00:58]}  Bxh2+ {[%clk 0:01:04]} 24. Kxh2 {[%clk 0:00:59]}  bxc5 {[%clk 0:01:03]} 25. g4 {[%clk 0:00:34]}  Nh4 {[%clk 0:00:36]} 26. Rf6 {[%clk 0:00:23]}  Rd6 {[%clk 0:00:29]} 27. Qe4 {[%clk 0:00:22]}  Qe7 {[%clk 0:00:22]} 28. Rxh6 {[%clk 0:00:20]}  Rd2+ {[%clk 0:00:20]} 29. Kh3 {[%clk 0:00:20]}  Qd6 {[%clk 0:00:03]} 30. Qh7+ {[%clk 0:00:18]}  Kf8 {[%clk 0:00:03]} 31. Qh8+ {[%clk 0:00:11]}  Ke7 {[%clk 0:00:03]} 32. Rh7# {[%clk 0:00:12]} 1-0


[Site "https://www.chess.com"]

[Event "Titled Tuesday Blitz August 15 Late 2023"]
[White "LuxLinster"]
[Black "financieru"]
[WhiteElo "2263"]
[BlackElo "2410"]
[Result "0-1"]
[Round "6"]
[TimeControl "180+1"]
[Date "2023.08.15"]
[WhiteClock "0:00:00"]
[BlackClock "0:00:41"]
[Board "127"]

1. d4 {[%clk 0:03:00]}  Nf6 {[%clk 0:03:00]} 2. c4 {[%clk 0:03:01]}  g6 {[%clk 0:03:01]} 3. Nc3 {[%clk 0:03:00]}  Bg7 {[%clk 0:03:02]} 4. e4 {[%clk 0:03:01]}  d6 {[%clk 0:03:02]} 5. f4 {[%clk 0:03:01]}  O-O {[%clk 0:03:03]} 6. Nf3 {[%clk 0:03:02]}  c5 {[%clk 0:03:01]} 7. d5 {[%clk 0:03:02]}  e6 {[%clk 0:03:02]} 8. dxe6 {[%clk 0:03:03]}  Bxe6 {[%clk 0:03:03]} 9. Bd3 {[%clk 0:03:04]}  Bg4 {[%clk 0:03:02]} 10. O-O {[%clk 0:03:02]}  Nc6 {[%clk 0:03:02]} 11. h3 {[%clk 0:03:03]}  Bxf3 {[%clk 0:03:00]} 12. Qxf3 {[%clk 0:03:04]}  a6 {[%clk 0:02:49]} 13. Be3 {[%clk 0:03:00]}  Nd7 {[%clk 0:02:41]} 14. Rad1 {[%clk 0:02:55]}  Rb8 {[%clk 0:02:28]} 15. a4 {[%clk 0:02:50]}  Nd4 {[%clk 0:02:27]} 16. Qf2 {[%clk 0:02:49]}  Re8 {[%clk 0:02:17]} 17. Nd5 {[%clk 0:02:44]}  Nb6 {[%clk 0:02:05]} 18. f5 {[%clk 0:02:22]}  Nd7 {[%clk 0:02:02]} 19. f6 {[%clk 0:01:53]}  Bh8 {[%clk 0:02:01]} 20. Bf4 {[%clk 0:01:38]}  Nxf6 {[%clk 0:01:43]} 21. Bg5 {[%clk 0:01:31]}  Nf5 {[%clk 0:00:52]} 22. exf5 {[%clk 0:01:16]}  Nxd5 {[%clk 0:00:52]} 23. Bxd8 {[%clk 0:01:11]}  Bd4 {[%clk 0:00:53]} 24. cxd5 {[%clk 0:01:02]}  Bxf2+ {[%clk 0:00:53]} 25. Rxf2 {[%clk 0:00:59]}  Rbxd8 {[%clk 0:00:53]} 26. fxg6 {[%clk 0:00:57]}  hxg6 {[%clk 0:00:53]} 27. Re2 {[%clk 0:00:51]}  Re5 {[%clk 0:00:54]} 28. Rxe5 {[%clk 0:00:39]}  dxe5 {[%clk 0:00:54]} 29. Bc4 {[%clk 0:00:38]}  f5 {[%clk 0:00:53]} 30. Kf2 {[%clk 0:00:38]}  Kg7 {[%clk 0:00:54]} 31. a5 {[%clk 0:00:37]}  Kf6 {[%clk 0:00:54]} 32. Rd3 {[%clk 0:00:31]}  Rd6 {[%clk 0:00:54]} 33. Rb3 {[%clk 0:00:31]}  e4 {[%clk 0:00:54]} 34. g3 {[%clk 0:00:27]}  Ke5 {[%clk 0:00:53]} 35. Rxb7 {[%clk 0:00:26]}  g5 {[%clk 0:00:54]} 36. Re7+ {[%clk 0:00:25]}  Kd4 {[%clk 0:00:53]} 37. b3 {[%clk 0:00:20]}  f4 {[%clk 0:00:53]} 38. gxf4 {[%clk 0:00:20]}  gxf4 {[%clk 0:00:54]} 39. Re6 {[%clk 0:00:20]}  Rd8 {[%clk 0:00:53]} 40. Rf6 {[%clk 0:00:13]}  f3 {[%clk 0:00:46]} 41. Rf4 {[%clk 0:00:10]}  Rg8 {[%clk 0:00:44]} 42. d6 {[%clk 0:00:09]}  Rg2+ {[%clk 0:00:44]} 43. Kf1 {[%clk 0:00:09]}  Ke3 {[%clk 0:00:44]} 44. Rf7 {[%clk 0:00:05]}  Rd2 {[%clk 0:00:44]} 45. Ke1 {[%clk 0:00:02]}  Rxd6 {[%clk 0:00:45]} 46. Re7 {[%clk 0:00:00]}  Kf4 {[%clk 0:00:41]} 0-1


[Site "https://www.chess.com"]

[Event "Titled Tuesday Blitz August 15 Late 2023"]
[White "Schut, Han"]
[Black "Figorito, Nick"]
[WhiteFideId "1005561"]
[BlackFideId "30923689"]
[WhiteElo "2241"]
[BlackElo "2398"]
[Result "0-1"]
[Round "6"]
[TimeControl "180+1"]
[Date "2023.08.15"]
[WhiteClock "0:00:00"]
[BlackClock "0:00:10"]
[Board "128"]

1. e4 {[%clk 0:03:00]}  e6 {[%clk 0:02:59]} 2. d4 {[%clk 0:03:00]}  d5 {[%clk 0:02:59]} 3. e5 {[%clk 0:03:01]}  c6 {[%clk 0:03:00]} 4. f4 {[%clk 0:02:59]}  Ne7 {[%clk 0:02:58]} 5. Nf3 {[%clk 0:02:59]}  g6 {[%clk 0:02:57]} 6. Bd3 {[%clk 0:02:57]}  Bg7 {[%clk 0:02:57]} 7. O-O {[%clk 0:02:56]}  h5 {[%clk 0:02:58]} 8. c3 {[%clk 0:02:54]}  b6 {[%clk 0:02:58]} 9. Be3 {[%clk 0:02:49]}  Ba6 {[%clk 0:02:58]} 10. Bxa6 {[%clk 0:02:47]}  Nxa6 {[%clk 0:02:59]} 11. Nbd2 {[%clk 0:02:43]}  Nb8 {[%clk 0:02:58]} 12. h3 {[%clk 0:02:39]}  Nd7 {[%clk 0:02:58]} 13. g4 {[%clk 0:02:34]}  hxg4 {[%clk 0:02:58]} 14. hxg4 {[%clk 0:02:35]}  c5 {[%clk 0:02:57]} 15. Kg2 {[%clk 0:02:14]}  Qc7 {[%clk 0:02:54]} 16. Rh1 {[%clk 0:02:12]}  O-O-O {[%clk 0:02:54]} 17. Rxh8 {[%clk 0:02:11]}  Rxh8 {[%clk 0:02:54]} 18. Qe2 {[%clk 0:02:11]}  c4 {[%clk 0:02:48]} 19. Rh1 {[%clk 0:02:10]}  Rxh1 {[%clk 0:02:48]} 20. Kxh1 {[%clk 0:02:11]}  b5 {[%clk 0:02:46]} 21. Ng5 {[%clk 0:02:05]}  Nc6 {[%clk 0:02:25]} 22. Nxf7 {[%clk 0:02:01]}  Nb6 {[%clk 0:02:18]} 23. Nd6+ {[%clk 0:01:55]}  Kb8 {[%clk 0:02:16]} 24. Qh2 {[%clk 0:01:55]}  a6 {[%clk 0:02:13]} 25. Qh7 {[%clk 0:01:44]}  Na4 {[%clk 0:02:13]} 26. Qxg6 {[%clk 0:01:29]}  Qe7 {[%clk 0:02:07]} 27. Bf2 {[%clk 0:01:09]}  Nxb2 {[%clk 0:02:04]} 28. f5 {[%clk 0:01:09]}  exf5 {[%clk 0:02:00]} 29. gxf5 {[%clk 0:01:10]}  Nxe5 {[%clk 0:01:52]} 30. dxe5 {[%clk 0:01:04]}  Bxe5 {[%clk 0:01:53]} 31. Qe8+ {[%clk 0:01:03]}  Qxe8 {[%clk 0:01:54]} 32. Nxe8 {[%clk 0:01:04]}  Bxc3 {[%clk 0:01:48]} 33. f6 {[%clk 0:00:57]}  Bxd2 {[%clk 0:01:32]} 34. f7 {[%clk 0:00:50]}  Bh6 {[%clk 0:01:33]} 35. Be3 {[%clk 0:00:38]}  Bf8 {[%clk 0:01:31]} 36. Bd4 {[%clk 0:00:39]}  b4 {[%clk 0:00:58]} 37. Bxb2 {[%clk 0:00:30]}  c3 {[%clk 0:00:58]} 38. Bc1 {[%clk 0:00:31]}  d4 {[%clk 0:00:45]} 39. Nf6 {[%clk 0:00:31]}  d3 {[%clk 0:00:37]} 40. Nd7+ {[%clk 0:00:28]}  Kb7 {[%clk 0:00:33]} 41. Nxf8 {[%clk 0:00:18]}  d2 {[%clk 0:00:33]} 42. Bxd2 {[%clk 0:00:16]}  cxd2 {[%clk 0:00:34]} 43. Ne6 {[%clk 0:00:15]}  d1=Q+ {[%clk 0:00:34]} 44. Kg2 {[%clk 0:00:10]}  Qg4+ {[%clk 0:00:31]} 45. Kh1 {[%clk 0:00:06]}  Qh5+ {[%clk 0:00:26]} 46. Kg2 {[%clk 0:00:06]}  Qg6+ {[%clk 0:00:15]} 47. Kh1 {[%clk 0:00:05]}  Qxe6 {[%clk 0:00:12]} 48. f8=Q {[%clk 0:00:05]}  Qe1+ {[%clk 0:00:10]} 49. Kg2 {[%clk 0:00:04]}  Qd2+ {[%clk 0:00:10]} 50. Kf1 {[%clk 0:00:03]}  Qd3+ {[%clk 0:00:10]} 51. Ke1 {[%clk 0:00:02]}  Qc3+ {[%clk 0:00:10]} 52. Kf1 {[%clk 0:00:03]}  Kb6 {[%clk 0:00:10]} 53. Qd6+ {[%clk 0:00:02]}  Kb5 {[%clk 0:00:10]} 54. Qd8 {[%clk 0:00:02]}  Qc4+ {[%clk 0:00:10]} 55. Ke1 {[%clk 0:00:02]}  Qc3+ {[%clk 0:00:10]} 56. Kf1 {[%clk 0:00:02]}  Qc5 {[%clk 0:00:11]} 57. Qb8+ {[%clk 0:00:02]}  Qb6 {[%clk 0:00:11]} 58. Qe5+ {[%clk 0:00:00]}  Ka4 {[%clk 0:00:10]} 0-1


[Site "https://www.chess.com"]

[Event "Titled Tuesday Blitz August 15 Late 2023"]
[White "KorolDimitriy75"]
[Black "Sarkar, Justin"]
[BlackFideId "2010011"]
[WhiteElo "2394"]
[BlackElo "2227"]
[Result "1/2-1/2"]
[Round "6"]
[TimeControl "180+1"]
[Date "2023.08.15"]
[WhiteClock "0:00:07"]
[BlackClock "0:00:04"]
[Board "130"]

1. d4 {[%clk 0:03:00]}  Nf6 {[%clk 0:02:51]} 2. c4 {[%clk 0:03:01]}  e6 {[%clk 0:02:50]} 3. Nc3 {[%clk 0:03:01]}  Bb4 {[%clk 0:02:49]} 4. Qc2 {[%clk 0:03:01]}  d5 {[%clk 0:02:48]} 5. cxd5 {[%clk 0:03:01]}  exd5 {[%clk 0:02:47]} 6. Bg5 {[%clk 0:03:01]}  h6 {[%clk 0:02:45]} 7. Bxf6 {[%clk 0:03:01]}  Qxf6 {[%clk 0:02:43]} 8. a3 {[%clk 0:03:02]}  Ba5 {[%clk 0:02:35]} 9. b4 {[%clk 0:02:39]}  Bb6 {[%clk 0:02:33]} 10. e3 {[%clk 0:02:21]}  Be6 {[%clk 0:02:15]} 11. Bd3 {[%clk 0:02:18]}  a5 {[%clk 0:02:02]} 12. Rb1 {[%clk 0:02:07]}  axb4 {[%clk 0:02:01]} 13. axb4 {[%clk 0:02:08]}  O-O {[%clk 0:01:53]} 14. Nge2 {[%clk 0:02:08]}  Nc6 {[%clk 0:01:44]} 15. O-O {[%clk 0:01:57]}  Ne7 {[%clk 0:01:31]} 16. Na4 {[%clk 0:01:54]}  Nf5 {[%clk 0:01:21]} 17. Nxb6 {[%clk 0:01:52]}  cxb6 {[%clk 0:01:21]} 18. Qc7 {[%clk 0:01:41]}  Nh4 {[%clk 0:01:14]} 19. Qxb6 {[%clk 0:00:51]}  Nxg2 {[%clk 0:01:04]} 20. Qd6 {[%clk 0:00:28]}  Nh4 {[%clk 0:00:50]} 21. Qf4 {[%clk 0:00:22]}  Bf5 {[%clk 0:00:41]} 22. Bxf5 {[%clk 0:00:18]}  Nxf5 {[%clk 0:00:41]} 23. Ng3 {[%clk 0:00:15]}  Nxg3 {[%clk 0:00:28]} 24. hxg3 {[%clk 0:00:15]}  Qxf4 {[%clk 0:00:20]} 25. gxf4 {[%clk 0:00:16]}  Rfc8 {[%clk 0:00:20]} 26. Rfc1 {[%clk 0:00:16]}  Rxc1+ {[%clk 0:00:17]} 27. Rxc1 {[%clk 0:00:17]}  Ra4 {[%clk 0:00:16]} 28. Rc5 {[%clk 0:00:14]}  Rxb4 {[%clk 0:00:15]} 29. Rxd5 {[%clk 0:00:14]}  Kf8 {[%clk 0:00:14]} 30. Rd7 {[%clk 0:00:13]}  Ke8 {[%clk 0:00:13]} 31. Rc7 {[%clk 0:00:14]}  b5 {[%clk 0:00:11]} 32. Rb7 {[%clk 0:00:13]}  Rb1+ {[%clk 0:00:08]} 33. Kg2 {[%clk 0:00:13]}  b4 {[%clk 0:00:08]} 34. e4 {[%clk 0:00:12]}  b3 {[%clk 0:00:07]} 35. d5 {[%clk 0:00:12]}  b2 {[%clk 0:00:04]} 36. d6 {[%clk 0:00:12]}  Rd1 {[%clk 0:00:03]} 37. Rxb2 {[%clk 0:00:10]}  Rxd6 {[%clk 0:00:03]} 38. e5 {[%clk 0:00:10]}  Rd4 {[%clk 0:00:03]} 39. Kf3 {[%clk 0:00:10]}  g5 {[%clk 0:00:03]} 40. fxg5 {[%clk 0:00:08]}  hxg5 {[%clk 0:00:04]} 41. Rb5 {[%clk 0:00:08]}  Rf4+ {[%clk 0:00:04]} 42. Ke3 {[%clk 0:00:08]}  Ke7 {[%clk 0:00:04]} 43. Rb6 {[%clk 0:00:08]}  Rf5 {[%clk 0:00:03]} 44. Rb5 {[%clk 0:00:05]}  Ke6 {[%clk 0:00:03]} 45. Ke4 {[%clk 0:00:05]}  Rxf2 {[%clk 0:00:03]} 46. Rb6+ {[%clk 0:00:05]}  Ke7 {[%clk 0:00:03]} 47. Rb7+ {[%clk 0:00:05]}  Ke6 {[%clk 0:00:04]} 48. Rb6+ {[%clk 0:00:06]}  Ke7 {[%clk 0:00:04]} 49. Rb7+ {[%clk 0:00:06]}  Ke6 {[%clk 0:00:04]} 50. Rb6+ {[%clk 0:00:07]} 1/2-1/2


[Site "https://www.chess.com"]

[Event "Titled Tuesday Blitz August 15 Late 2023"]
[White "Vila Dupla, Aurelio"]
[Black "Cnejev, Vladimir-Alexandru"]
[WhiteFideId "2203383"]
[BlackFideId "1260898"]
[WhiteElo "2133"]
[BlackElo "2559"]
[Result "0-1"]
[Round "6"]
[TimeControl "180+1"]
[Date "2023.08.15"]
[WhiteClock "0:00:16"]
[BlackClock "0:00:13"]
[Board "133"]

1. Nf3 {[%clk 0:03:00]}  g6 {[%clk 0:02:59]} 2. d4 {[%clk 0:02:55]}  Bg7 {[%clk 0:03:00]} 3. c4 {[%clk 0:02:55]}  b6 {[%clk 0:02:53]} 4. g3 {[%clk 0:02:54]}  Bb7 {[%clk 0:02:51]} 5. Bg2 {[%clk 0:02:54]}  e6 {[%clk 0:02:51]} 6. O-O {[%clk 0:02:54]}  Ne7 {[%clk 0:02:48]} 7. Nc3 {[%clk 0:02:37]}  d6 {[%clk 0:02:34]} 8. e4 {[%clk 0:02:35]}  Nd7 {[%clk 0:02:26]} 9. Re1 {[%clk 0:02:18]}  O-O {[%clk 0:02:25]} 10. e5 {[%clk 0:02:15]}  dxe5 {[%clk 0:02:23]} 11. dxe5 {[%clk 0:02:10]}  h6 {[%clk 0:02:11]} 12. h4 {[%clk 0:02:09]}  Nc6 {[%clk 0:01:53]} 13. Bf4 {[%clk 0:02:07]}  Qe7 {[%clk 0:01:52]} 14. Qd2 {[%clk 0:01:59]}  Kh7 {[%clk 0:01:52]} 15. Rad1 {[%clk 0:01:53]}  Rfd8 {[%clk 0:01:51]} 16. Qc1 {[%clk 0:01:52]}  Rab8 {[%clk 0:01:21]} 17. Qe3 {[%clk 0:01:28]}  a6 {[%clk 0:01:16]} 18. b3 {[%clk 0:01:24]}  Qc5 {[%clk 0:00:53]} 19. Qe2 {[%clk 0:00:58]}  Ba8 {[%clk 0:00:42]} 20. Ne4 {[%clk 0:00:57]}  Qe7 {[%clk 0:00:41]} 21. Nf6+ {[%clk 0:00:57]}  Nxf6 {[%clk 0:00:33]} 22. exf6 {[%clk 0:00:57]}  Bxf6 {[%clk 0:00:30]} 23. Bxh6 {[%clk 0:00:51]}  Kxh6 {[%clk 0:00:20]} 24. Qe3+ {[%clk 0:00:44]}  Kg7 {[%clk 0:00:18]} 25. Ng5 {[%clk 0:00:45]}  Nd4 {[%clk 0:00:15]} 26. Bxa8 {[%clk 0:00:42]}  Rxa8 {[%clk 0:00:16]} 27. Ne4 {[%clk 0:00:39]}  Nc2 {[%clk 0:00:16]} 28. Qe2 {[%clk 0:00:35]}  Nxe1 {[%clk 0:00:15]} 29. Rxe1 {[%clk 0:00:36]}  Rd4 {[%clk 0:00:15]} 30. Nxf6 {[%clk 0:00:32]}  Qxf6 {[%clk 0:00:15]} 31. Qf3 {[%clk 0:00:32]}  Rad8 {[%clk 0:00:15]} 32. Qc6 {[%clk 0:00:31]}  Qe7 {[%clk 0:00:14]} 33. Re5 {[%clk 0:00:28]}  Rd1+ {[%clk 0:00:13]} 34. Kg2 {[%clk 0:00:27]}  Qf6 {[%clk 0:00:13]} 35. Qxc7 {[%clk 0:00:16]}  R8d2 {[%clk 0:00:13]} 0-1


[Site "https://www.chess.com"]